Cogmind - Beta 13 @@@ ROGUE MODE // 2024.04.05 @ 15:58:43 Player: Bananaman Result: Destroyed by as-90493 with Assembled Blade Performance ------------- Evolutions (1) 500 Regions Visited (4) 800 Robots Destroyed (31) 155 Value Destroyed (661) 661 Prototype IDs (2) 40 Alien Tech Used (0) 0 Bonus (0) 0 TOTAL SCORE: 2156 Bonus ------- None Cogmind --------- Core Integrity 0/400 Matter 261/300 Energy 99/100 System Corruption 5% Temperature Warm (149) Movement Core (100) Ox1 Location -9/Mines Parts ------- > --- POWER (1) -------- (None) > --- PROPULSION (2) --- (None) > --- UTILITY (4) ------ Small Storage Unit > --- WEAPON (2) ------- (None) > --- INVENTORY (8) ---- Airjet Airjet Heavy Particle Cannon Heavy Particle Cannon Improved Grenade Launcher Improved Grenade Launcher Peak State ------------ > --- POWER ------------ Improved Ion Engine > --- PROPULSION ------- Airjet Airjet > --- UTILITY ---------- Small Storage Unit Experimental Sensor Array Targeting Computer > --- WEAPON ----------- Heavy Particle Cannon Heavy Particle Cannon > --- INVENTORY -------- Airjet Airjet Heavy Particle Cannon Heavy Particle Cannon Improved Grenade Launcher Improved Grenade Launcher Improved Grenade Launcher [Rating: 27] Favorites ----------- Power Light Ion Engine Engine Light Ion Engine Propulsion Light Treads Treads Light Treads Hover Unit Airjet Utility Small Storage Unit Device Improved Terrain Scanner Storage Small Storage Unit Processor Visual Processing Unit Weapon EM Pulse Gun Energy Gun EM Pulse Gun Energy Cannon Beam Cannon Ballistic Gun Heavy Assault Rifle Launcher Mini Grenade Launcher Build | -11 -10 -10 -9 -9 ------- Run | Yrd Mat Min Mat Min Slots Evolved 2 | . . . 2 . Power . | . . . . . Propulsion . | . . . . . Utility 2 | . . . 2 . Weapon . | . . . . . Parts Attached 31 | 6 3 6 12 4 Power 5 | 1 . 1 1 2 Engine 5 | 1 . 1 1 2 Core . | . . . . . Reactor . | . . . . . Propulsion 6 | 1 1 1 3 . Treads 4 | 1 1 1 1 . Leg . | . . . . . Wheel . | . . . . . Hover 2 | . . . 2 . Flight . | . . . . . Utility 7 | 2 1 1 2 1 Device 3 | 1 1 . . 1 Storage 1 | 1 . . . . Processor 3 | . . 1 2 . Hackware . | . . . . . Protection . | . . . . . Artifact . | . . . . . Weapon 13 | 2 1 3 6 1 Energy Gun 4 | 2 . 2 . . Energy Cannon 6 | . 1 . 5 . Ballistic Gun 1 | . . 1 . . Ballistic Cannon . | . . . . . Launcher 2 | . . . 1 1 Special Weapon . | . . . . . Impact Weapon . | . . . . . Slashing Weapon . | . . . . . Piercing Weapon . | . . . . . Special Melee Weapon . | . . . . . Unidentified Prototypes 2 | . . . 1 1 Corrupted Parts 1 | . . 1 . . System Corruption 2 | . . 2 . . Parts Lost 13 | . . 3 1 9 Power 3 | . . 1 . 2 Propulsion 4 | . . 1 1 2 Utility 2 | . . . . 2 Weapon 4 | . . 1 . 3 Highest Loss Streak 9 | . . 2 1 9 To Critical Strikes . | . . . . . Average Slot Usage (%) 93 | . 96 98 96 69 Engine 11 | . 14 13 11 7 Treads 19 | . 24 27 16 . Hover 3 | . . . 2 18 Device 4 | . 14 5 . 3 Storage 12 | . 14 14 11 11 Processor 16 | . . 7 32 10 Energy Gun 9 | . 21 12 5 . Energy Cannon 12 | . 6 13 11 18 Ballistic Gun 1 | . . 1 3 . Naked Turns . | . . . . . Heaviest Build 25 | 13 14 16 24 25 Greatest Support 40 | 20 40 40 40 16 Greatest Overweight (x) 2 | . . . 2 2 Average Overweight (x) . | . . . . 1 Largest Inventory Capacity 8 | 8 8 8 8 8 Average Capacity 7 | 7 8 8 8 8 Most Carried 8 | 5 8 8 8 8 Average Carried 5 | 2 5 6 6 7 Final Capacity 8 | 8 8 8 8 8 Final Carried 8 | 3 6 6 8 6 Class Distribution -------------------- 72% | Mutant 27% | Scavenger-Mutant Dominant Class ---------------- Mutant | -10/Materials Mutant | -10/Mines Scavenger-Mutant | -9/Materials Mutant | -9/Mines Resources | -11 -10 -10 -9 -9 ----------- Run | Yrd Mat Min Mat Min Matter Collected 680 | 260 20 127 241 32 Remotely . | . . . . . Salvage Created 887 | 119 225 180 355 8 Parts 60 | 10 15 9 26 . Haulers Intercepted . | . . . . . Recyclers Shooed 2 | 1 . . 1 . Parts Field Recycled . | . . . . . Retrieved Matter . | . . . . . Parts Self-Destructed . | . . . . . Prevented . | . . . . . Kills | -11 -10 -10 -9 -9 ------- Run | Yrd Mat Min Mat Min Combat Hostiles Destroyed 20 | . 4 5 9 2 Guns 6 | . 3 2 1 . Cannons 7 | . 1 3 3 . AOE 6 | . . . 4 2 Classes Destroyed 9 | 3 2 2 1 1 Worker 4 | 2 1 . 1 . Builder 1 | . . . 1 . Tunneler 3 | 1 . 1 1 . Recycler 2 | 1 . . 1 . Watcher 3 | . 1 . 2 . Swarmer 5 | . . 2 3 . Grunt 10 | . 4 2 4 . Sentry 3 | . . 1 2 . Assembled 2 | . . . . 2 Best Kill Streak 6 | 3 4 3 6 2 Combat Bots Only 4 | . 2 3 4 2 Max Kills in Single Turn 2 | 1 1 1 2 2 Gunslinging . | . . . . . Exploded 2 | . . . 2 2 Melee . | . . . . . Uniques/NPCs Destroyed . | . . . . . Combat | -11 -10 -10 -9 -9 -------- Run | Yrd Mat Min Mat Min Hostile Shots Fired 170 | . 19 67 60 24 Missed 40 | . 7 14 16 3 Damage Taken 2070 | . 137 572 504 857 Core 595 | . 23 157 105 310 Absorbed by Shields . | . . . . . Core Remaining (%) 64 | 100 . 28 . . Volleys Fired 88 | 7 13 24 35 9 Largest 2 | 2 2 2 2 2 Hottest 150 | 90 100 110 150 150 Shots Fired 163 | 14 26 42 68 13 Gun 77 | 14 21 18 24 . Cannon 76 | . 5 24 38 9 Launcher 10 | . . . 6 4 Special . | . . . . . Kinetic 16 | . . 7 9 . Thermal 109 | 7 13 27 53 9 Explosive 10 | . . . 6 4 Electromagnetic 28 | 7 13 8 . . Robot Hit Streak 17 | 4 4 5 17 4 Robot Miss Streak 5 | 1 1 5 5 3 Penetration Max . | . . . . . Secondary Targets . | . . . . . Shots Hit Robots 78 | 5 15 21 29 8 Core Hits 56 | 4 9 8 29 6 Critical Kills 1 | . . . 1 . Critical Parts Destroyed . | . . . . . Critical Strikes 2 | . 1 . 1 . Meltdown 1 | . . . 1 . Corrupt 1 | . 1 . . . Melee Attacks . | . . . . . Impact . | . . . . . Slashing . | . . . . . Piercing . | . . . . . Sneak Attacks . | . . . . . Combat Hostiles . | . . . . . Follow-up Attacks . | . . . . . Damage Inflicted 2043 | 71 208 369 1134 261 Guns 622 | 71 173 123 255 . Cannons 676 | . 35 245 271 125 Explosions 740 | . . . 604 136 Melee . | . . . . . Ramming 5 | . . 1 4 . Kinetic 214 | . . 76 138 . Thermal 904 | 13 109 269 388 125 Explosive 650 | . . . 514 136 Electromagnetic 270 | 58 99 23 90 . Impact . | . . . . . Slashing . | . . . . . Piercing . | . . . . . Highest Corruption 5 | . . 2 1 5 Average Corruption 1 | . . 2 1 1 Corruption Purged . | . . . . . Corruption Blocked . | . . . . . Effects 8 | . . 5 . 3 Message Errors 1 | . . . . 1 Matter Fused 2 | . . 1 . 1 Heat Flow Errors 3 | . . 2 . 1 Energy Discharges 1 | . . 1 . . Data Loss (minor) 1 | . . 1 . . Overload Shots . | . . . . . Overflow Damage 22 | . . . 20 2 Projectiles 1 | . . . 1 . Explosions 21 | . . . 19 2 Melee . | . . . . . Knockbacks 1 | . . . 1 . Impact 1 | . . . 1 . Kinetic . | . . . . . Secondary . | . . . . . Self-Inflicted Damage 25 | . . . 25 . Shots 1 | . . . 1 . Rammed 1 | . . . 1 . Targets Rammed 2 | . . 1 1 . Kicked . | . . . . . Crushed 1 | . . 1 . . Highest Temperature 471 | 60 187 471 423 285 Average Temperature 124 | 28 74 173 120 146 Received Heat Transfer 387 | . 72 138 177 . Effects 11 | . . 7 3 1 Shutdowns 3 | . . 2 1 . Energy Bleed 1 | . . . . 1 Interference 2 | . . 2 . . Matter Decay 2 | . . 1 1 . Short Circuit 2 | . . 1 1 . Damage (minor) 1 | . . 1 . . Siege Activations . | . . . . . Robots Corrupted . | . . . . . Combat Hostiles . | . . . . . Parts Fried . | . . . . . Impact Corruptions . | . . . . . Robots Melted 1 | . . . 1 . Combat Hostiles 1 | . . . 1 . Parts Melted 4 | . . 1 3 . Heat Transferred 1887 | 37 296 592 777 185 Parts Sabotaged . | . . . . . Parts Stolen . | . . . . . Parts Stripped . | . . . . . Power Chain Reactions . | . . . . . Alert | -11 -10 -10 -9 -9 ------- Run | Yrd Mat Min Mat Min Peak Influence 305 | 20 127 109 305 70 Initial 69 | . 13 49 19 69 Average 83 | 8 80 64 140 57 Maximum Alert Level 1 | . . . 1 . Low Security (%) 90 | 100 100 100 69 100 Level 1 9 | . . . 30 . Level 2 . | . . . . . Level 3 . | . . . . . Level 4 . | . . . . . Level 5 . | . . . . . High Security . | . . . . . Max Security . | . . . . . Squads Dispatched 4 | . 3 . 1 . Investigation 2 | . 2 . . . Extermination . | . . . . . Reinforcement 2 | . 1 . 1 . Assault . | . . . . . Garrison . | . . . . . Intercept . | . . . . . Searches Triggered . | . . . . . Construction Impeded 1 | . . . 1 . Haulers Reinforced . | . . . . . Active Scanning Responses . | . . . . . Cargo Convoy Interrupts . | . . . . . Stealth | -11 -10 -10 -9 -9 --------- Run | Yrd Mat Min Mat Min Distress Signals 1 | . 1 . . . Communications Jammed . | . . . . . Distress Signals . | . . . . . Times Spotted 36 | . 5 7 15 9 Peak Tracking Total 5 | . 3 4 5 4 Tactical Retreats . | . . . . . Traps | -11 -10 -10 -9 -9 ------- Run | Yrd Mat Min Mat Min Traps Triggered 2 | . 2 . . . Indirectly . | . . . . . Trap Hack Attempts . | . . . . . Triggered . | . . . . . Disarmed . | . . . . . Reprogrammed . | . . . . . Reused . | . . . . . Traps Extracted . | . . . . . Installed . | . . . . . Triggered . | . . . . . Machines | -11 -10 -10 -9 -9 ---------- Run | Yrd Mat Min Mat Min Machines Disabled 2 | . . . 2 . Max in Single Turn 1 | . . . 1 . Machines Repaired . | . . . . . Machines Dismantled . | . . . . . Machines Sabotaged . | . . . . . Overloaded Fab Kills . | . . . . . Hacking | -11 -10 -10 -9 -9 --------- Run | Yrd Mat Min Mat Min Machines Accessed 3 | . 1 1 1 . Terminals 3 | . 1 1 1 . Fabricators . | . . . . . Repair Stations . | . . . . . Recycling Units . | . . . . . Scanalyzers . | . . . . . Garrison Access . | . . . . . Total Hacks 9 | . 3 5 1 . Successful 8 | . 3 4 1 . Failed 1 | . . 1 . . Catastrophic 1 | . . 1 . . Database Lockouts . | . . . . . Manual . | . . . . . Terminals 9 | . 3 5 1 . Fabricators . | . . . . . Repair Stations . | . . . . . Recycling Units . | . . . . . Scanalyzers . | . . . . . Garrison Access . | . . . . . Terminal Hacks 8 | . 3 4 1 . Record 3 | . 3 . . . Alert Level 5 | . . 4 1 . Fabricator Hacks . | . . . . . Repair Station Hacks . | . . . . . Recycling Unit Hacks . | . . . . . Scanalyzer . | . . . . . Garrison Access Hacks . | . . . . . Unauthorized Hacks . | . . . . . Terminals . | . . . . . Fabricators . | . . . . . Repair Stations . | . . . . . Recycling Units . | . . . . . Scanalyzers . | . . . . . Garrison Access . | . . . . . Data Cores Recovered . | . . . . . Used . | . . . . . Hacking Detections 3 | . 1 1 1 . Full Trace Events . | . . . . . Feedback Events . | . . . . . Feedback Blocked . | . . . . . Robot Schematics Acquired . | . . . . . Robots Built . | . . . . . Authchips . | . . . . . Time . | . . . . . Total Robot Build Rating . | . . . . . Part Schematics Acquired . | . . . . . Parts Built . | . . . . . Authchips . | . . . . . Time . | . . . . . Total Part Build Rating . | . . . . . Parts Repaired . | . . . . . Time . | . . . . . Parts Recycled . | . . . . . Recycled Matter . | . . . . . Retrieved Matter . | . . . . . Retrieved Components . | . . . . . Parts Scanalyzed . | . . . . . Part Schematics Acquired . | . . . . . Parts Damaged . | . . . . . Bothacking | -11 -10 -10 -9 -9 ------------ Run | Yrd Mat Min Mat Min Used RIF Installer . | . . . . . Robots Hacked . | . . . . . Non-combat . | . . . . . Combat . | . . . . . Robot Hacks Applied . | . . . . . Relay Couplers Released . | . . . . . Fabnet Peak Effective % . | . . . . . Robots Rewired . | . . . . . Allies Hacked . | . . . . . Hacks Repelled . | . . . . . Allies | -11 -10 -10 -9 -9 -------- Run | Yrd Mat Min Mat Min Total Allies . | . . . . . Largest Group . | . . . . . Highest-Rated Group . | . . . . . Highest-Rated Ally . | . . . . . Total Orders . | . . . . . Ally Attacks . | . . . . . Total Damage . | . . . . . Kills . | . . . . . Allies Corrupted . | . . . . . Allies Melted . | . . . . . Intel | -11 -10 -10 -9 -9 ------- Run | Yrd Mat Min Mat Min Robot Analysis Total . | . . . . . Derelict Logs Recovered 1 | . . 1 . . Drone Launches . | . . . . . Drone Recoveries . | . . . . . Exploration | -11 -10 -10 -9 -9 ------------- Run | Yrd Mat Min Mat Min Turns Passed 1821 | 246 268 520 589 198 Spaces Moved 930 | 99 135 272 281 143 Core 27 | 11 . . . 16 Treads 750 | 88 135 272 255 . Legs . | . . . . . Wheels . | . . . . . Hover 153 | . . . 26 127 Flight . | . . . . . Fastest Speed 50 | 50 160 160 116 100 Average Speed 150 | 147 160 160 156 116 Slowest Speed 200 | 160 160 160 200 180 Overloaded Moves . | . . . . . Propulsion Burnouts . | . . . . . Robots Hopped . | . . . . . Cave-ins Triggered . | . . . . . Exploration Rate (%) 32 | 5 33 63 30 32 Regions Visited 4 Branch Regions 2 Pre-discovered Areas . | . . . . . Known Exits Taken . | . . . . . Unknown Exits Taken 4 | 1 1 1 1 . Scrap Searched 2 | . . 1 . 1 Spaces Dug . | . . . . . Terrain Destroyed 50 | . . . 25 25 Melee . | . . . . . Projectile 11 | . . . 7 4 AOE 39 | . . . 18 21 Terrain Rammed . | . . . . . Walls Destroyed . | . . . . . Machines Disabled . | . . . . . Actions | -11 -10 -10 -9 -9 --------- Run | Yrd Mat Min Mat Min Total 1196 | 185 162 315 371 163 Wait 73 | 63 4 4 2 . Move 926 | 98 134 271 280 143 Hop . | . . . . . Pick Up 47 | 10 6 6 21 4 Fast Attach . | . . . . . Attach 24 | 6 2 4 9 3 Detach 2 | . . . 2 . Swap 7 | . 1 2 3 1 Drop 27 | 1 2 3 18 3 Fire 88 | 7 13 24 35 9 Melee . | . . . . . Ram . | . . . . . Kick . | . . . . . Crush 2 | . . 1 1 . Escape Stasis . | . . . . . Rewire . | . . . . . Trap . | . . . . . Miscellaneous . | . . . . . Route ------- -11/Scrapyard -10/Materials -10/Mines -9/Materials -9/Mines (discovered 2 exits: [*Mat] / [*Zio]) History --------- Turn | Location | Event 12 | -11/Scrapyard | Discovered new exit (range 16) 247 | -11/Scrapyard | Entered Materials 305 | -10/Materials | Build established: Mutant 461 | -10/Materials | Discovered new exit (range 16) 515 | -10/Materials | Entered Mines 572 | -10/Mines | Met a Derelict bent on vengeance 692 | -10/Mines | Core integrity fell below 50% 711 | -10/Mines | Learned Materials trap positions 981 | -10/Mines | Discovered new exit (range 8) 1035 | -10/Mines | Entered Materials 1035 | -9/Materials | Evolved 2 slots: Utility x2 1036 | -9/Materials | Loaded intel: 17 trap records 1326 | -9/Materials | Build established: Scavenger-Mutant 1532 | -9/Materials | Discovered new exit (range 18) 1624 | -9/Materials | Entered Mines 1708 | -9/Mines | Discovered new exit (range 15) 1715 | -9/Mines | Found a damaged Exp. Sensor Array with a note attached 1719 | -9/Mines | Found Prototype Device 1720 | -9/Mines | Identified Exp. Sensor Array 1762 | -9/Mines | A Derelict revealed a hidden shortcut to a safe place 1762 | -9/Mines | Assembled infested the area 1767 | -9/Mines | Assisted by a Guerilla fighting off Assembled 1777 | -9/Mines | Core integrity fell below 50% 1795 | -9/Mines | Core integrity fell below 20% 1822 | -9/Mines | Destroyed by as-90493 with Assembled Blade Last Messages --------------- 01792_ Imp. Ion Engine destroyed. 01792_ Hvy. Particle Cannon destroyed. 01797_ Destroyed Shock Absorption System. 01800_ The unstable cave ceiling collapses. 01801_ as-70619 destroyed. 01801_ as-03409 destroyed. 01803_ The unstable cave ceiling collapses. 01807_ Imp. Grenade Launcher destroyed. 01807_ Airjet destroyed. 01807_ D-53 Grenadier destroyed. 01808_ The unstable cave ceiling collapses. 01808_ Acquired 6 matter. 01811_ The unstable cave ceiling collapses. 01813_ U-05 Engineer lays Concrete. 01814_ Targeting Computer destroyed. 01814_ System corrupted by crushing effect (+4). 01815_ U-05 Engineer builds a Wall. 01817_ The unstable cave ceiling collapses. 01817_ Acquired 2 matter. 01818_ System corrupted: Heat flow error (+261). Map ----- +----------------------------------------------------+ | | | | | | | ??????????????????????????????????????????? | | ????????#########???????????????####??????? | | ????????# #??#####?????#### ##?????? | | ????????# #?## ##???## ####### | | ????????# ### ### ##??# | | ????????# ## # #### ##### | | ???????## # #???? | | ??????## # # #???? | | ??????# < ###### ### ##???# | | ??????# # ###????# #?## #????# | | ??????# # # # #??????# #??# #???## | | ??????## # #??????# #### #??## | | ???????## # ###????# ## #??# | | ???????## > # ###???# ## #### | | ???????# ! % "#???## | | ???????# #????# | | ???????## % ##???### #####| = | | ???????# "#?????# #???# | | ???????# "##?????# #???# # | | ???????## ## ####??????# #???#### | | ????????# ########?????????# ######## | | ????????##### #######??????????# | | ????????????# @ #??????????########## | | ????????????# aa #???????????????????? | | ????????????######## #???????????????????? | | ???????????????????? #???????????????????? | | ????????????????????? ??????????????????? | | ?????????????????????? ?????????????????? | | ??????????????????????? ???????????????? | | ???????????????????????## a ??????????????? | | ?????????????????????????# #?????????????? | | ??????????????????????????###?????????????? | | ??????????????????????????????????????????? | | ??????????????????????????????????????????? | | ??????????????????????????????????????????? | | ??????????????????????????????????????????? | | ??????????????????????????????????????????? | | ??????????????????????????????????????????? | | ??????????????????????????????????????????? | | ??????????????????????????????????????????? | | ??????????????????????????????????????????? | | ??????????????????????????????????????????? | | ??????????????????????????????????????????? | | ??????????????????????????????????????????? | | ??????????????????????????????????????????? | | ??????????????????????????????????????????? | | ??????????????????????????????????????????? | +----------------------------------------------------+ Best States ------------- Heat Dissipation 28 Energy Generation 12 Energy Capacity 265 Matter Stores 300 Matter Capacity 300 Sight Range 18 Robot Scan Range 20 Terrain Scan Range 16 Terrain Scan Density 10 Evasion (%) 50 Targeting Accuracy 5 Recoil Reduction 2 Authchip Count 1 Item Schematics ----------------- None Robot Schematics ------------------ None Fabricated ------------ Nothing Alien Tech Used ----------------- None Achievements -------------- It's Just You Storm Trooper Challenges ------------ None Game ------ Seed QuantumCorruptionSaw Manual? 0 Play Time 00:31:29 Cumulative 1.3 hours Start 2024.04.04 @ 21:39:56 End 2024.04.05 @ 15:58:43 Sessions 3 Manual Loads 0 Difficulty Rogue Special Mode None Game No. 2 Rogue 2 Adventurer 0 Explorer 0 Win Type - Total 0 Types 0/0/0/0/0/0/0/0/0 Lore% 0 Gallery% 3 Achievement% 3 Wizard Run 0 Options --------- Layout 0 ASCII 0 Keyboard 0 Movement Numpad Keybinds 0 Fullscreen 1 Font 18/SmallcapsGlow Map View 38x25 Zoom Use 83% Tactical HUD 1 Map Filters NONE Filters NONE Steam 1 RUN: 22358e54-59fd-43fb-b456-2c10b2a90c0a